bitfinex-derivatives/quotes_ETHF0:USTF0_20250205
["timestamp","ask_amount","ask_price","bid_price","bid_amount"]
[1738771711661,3.2078,2755.0,2754.3,4.71415667]
[1738771712169,3.21324336,2755.1,2754.3,4.71415667]
[1738771712468,0.00544336,2755.1,2754.5,3.2078]
[1738771712765,3.2078,2755.4,2754.8,3.38670408]
[1738771712967,3.2078,2756.9,2755.2,4.11239408]
[1738771713157,1.81262,2757.8,2755.7,3.2078]
[1738771713158,3.2078,2756.6,2755.7,3.2078]
[1738771713358,3.2078,2757.5,2756.4,3.38670408]
[1738771713663,3.2078,2758.1,2756.9,3.2078]
[1738771713858,3.2078,2758.1,2756.8,3.38670408]
[1738771713859,3.2078,2758.1,2757.6,3.2078]
[1738771714060,0.00544336,2757.8,2757.6,3.2078]
[1738771714562,3.2078,2759.1,2757.7,4.63153654]
[1738771714763,3.2078,2758.1,2757.7,4.63153654]
[1738771714972,3.2078,2757.8,2757.2,3.39214744]
[1738771715158,3.2078,2757.8,2757.2,0.00544336]
[1738771715358,1.957,2758.6,2757.2,0.00544336]
[1738771715359,3.2078,2757.5,2757.2,0.00544336]
[1738771715960,8.2078,2757.5,2757.2,0.00544336]
[1738771716264,3.38670408,2757.3,2755.2,3.38670408]
[1738771716462,3.2078,2756.3,2755.2,3.38670408]
[1738771716666,3.2078,2756.3,2755.3,4.66915582]
[1738771716865,3.2078,2756.7,2755.7,3.2078]
[1738771717061,3.2078,2756.5,2755.4,0.7288]
[1738771717467,0.00544336,2756.2,2755.7,0.00544336]
[1738771717664,0.00544336,2756.2,2755.7,0.0780202]
[1738771718167,3.21324336,2756.2,2755.8,4.82129738]
[1738771718370,0.00544336,2756.2,2755.9,0.07257157]
[1738771719061,0.00544336,2756.2,2756.0,4.72497264]
[1738771719268,0.6041,2758.0,2756.0,7.93277264]
[1738771719568,3.2078,2757.2,2756.4,3.2078]
[1738771720171,3.2078,2757.2,2756.1,3.2078]
[1738771720475,3.2078,2756.9,2756.1,8.01730185]
[1738771721475,3.2078,2756.9,2756.1,4.80950185]
[1738771721866,3.2078,2756.9,2755.8,3.9183]
[1738771721867,3.2078,2756.9,2755.9,4.67058697]
[1738771722066,3.2078,2756.9,2756.2,4.70964117]
[1738771722473,3.2078,2756.9,2756.0,4.70964117]
[1738771722672,3.2078,2756.9,2755.8,3.9183]
[1738771722870,0.00544336,2757.1,2755.8,3.9183]
[1738771723170,0.00544336,2757.1,2756.4,3.2078]
[1738771723373,0.00544336,2757.1,2756.0,3.2078]
[1738771723570,0.00544336,2757.1,2756.3,3.2078]
[1738771723770,0.00544336,2757.1,2756.5,4.74813429]
[1738771723968,3.2078,2756.9,2756.5,4.74813429]
[1738771724166,3.2078,2756.9,2755.9,4.67046954]
[1738771724167,3.2078,2756.6,2755.1,3.2078]
[1738771724367,3.2078,2756.1,2754.9,3.2078]
[1738771724570,3.2078,2756.1,2753.3,1.26629608]
[1738771724571,3.2078,2756.1,2754.6,3.2078]
[1738771724972,3.2078,2756.1,2755.2,3.2078]
[1738771725172,0.7266,2756.5,2755.2,3.2078]
[1738771725469,3.9344,2756.5,2755.3,4.6682013]
[1738771725674,0.00544336,2756.1,2755.6,0.00544336]
[1738771726469,3.2078,2755.9,2755.6,0.00544336]
[1738771726669,3.93334,2755.9,2755.6,0.00544336]
[1738771726970,3.2078,2755.9,2755.6,0.00544336]
[1738771727765,10.1428,2755.9,2754.2,0.7116]
[1738771727971,3.2078,2755.3,2754.2,0.7116]
[1738771728282,3.2078,2755.3,2754.3,7.90788961]
[1738771728474,3.2078,2755.1,2754.3,4.70008961]
[1738771728772,3.2078,2754.8,2754.1,3.2078]
[1738771728969,0.6795,2755.2,2754.1,3.2078]
[1738771729175,0.00544336,2754.7,2754.2,4.79084554]
[1738771729373,0.00544336,2754.7,2754.4,3.2078]
[1738771729774,0.00544336,2754.7,2754.1,3.2078]
[1738771730176,0.00544336,2754.7,2754.3,4.72282391]
[1738771730372,0.00544336,2754.7,2754.2,4.72282391]
[1738771730574,0.00544336,2754.7,2754.4,3.2078]
[1738771730879,1.943,2756.3,2754.4,3.2078]
[1738771730880,3.2078,2756.5,2754.4,8.32621129]
[1738771731079,3.2078,2756.8,2755.3,3.2078]
[1738771731481,3.2078,2756.8,2755.6,3.2078]
[1738771731874,0.00544336,2756.5,2755.9,3.21324336]
[1738771732374,0.00544336,2756.5,2756.0,3.7472259]
[1738771732573,0.00544336,2756.5,2756.2,3.2078]
[1738771732773,3.2078,2757.5,2756.2,3.2078]
[1738771733082,3.2078,2757.5,2756.9,3.2078]
[1738771734181,0.00544336,2757.5,2756.9,3.2078]
[1738771734482,0.00544336,2757.5,2756.5,0.7151]
[1738771734681,0.00544336,2757.5,2756.4,3.2078]
[1738771734682,3.2078,2756.9,2756.4,3.2078]
[1738771734882,3.2078,2756.9,2755.9,0.00544336]
[1738771735082,3.2078,2756.6,2755.9,0.00544336]
[1738771737077,3.2078,2756.6,2756.0,4.67588592]
[1738771737278,3.93316,2756.6,2755.9,0.00544336]
[1738771737479,3.2078,2756.3,2755.9,0.00544336]
[1738771737890,3.2078,2756.6,2755.9,0.00544336]
[1738771738186,3.2078,2756.6,2756.0,7.86737342]
[1738771738579,3.2078,2756.6,2755.9,0.00544336]
[1738771738981,3.2078,2756.6,2755.9,3.21324336]
[1738771739283,3.2078,2756.6,2756.0,4.70247473]
[1738771740285,3.2078,2757.0,2756.2,3.2078]
[1738771740585,3.2078,2757.0,2756.4,3.2078]
[1738771741185,0.72528,2756.9,2756.5,4.73984809]
[1738771741478,3.2078,2757.0,2756.2,4.73984809]
[1738771741882,3.2078,2757.0,2755.9,3.21324336]
[1738771741883,3.93305,2757.0,2755.9,3.21324336]
[1738771742176,3.2078,2757.0,2756.0,4.6606733]
[1738771742693,3.93329,2756.1,2755.9,0.00544336]
[1738771742987,3.2078,2756.5,2755.9,0.00544336]
[1738771743381,3.2078,2757.2,2756.0,3.2078]
[1738771743585,3.2078,2757.2,2756.0,7.836532]
[1738771743983,0.72513,2757.4,2756.3,3.2078]
[1738771744184,0.72513,2757.4,2756.0,4.628732]
[1738771744185,3.2078,2757.2,2756.0,7.836532]
[1738771744386,3.2078,2756.6,2756.4,4.73711143]
[1738771744584,3.2078,2756.6,2756.0,3.2078]
[1738771744984,3.39542311,2757.3,2755.9,0.00544336]
[1738771744985,0.00544336,2757.5,2756.3,3.2078]
[1738771745287,0.28569915,2759.1,2757.4,6.60322311]
[1738771745591,3.2078,2759.6,2758.4,3.2078]
[1738771745884,3.2078,2759.6,2758.7,3.2078]
[1738771746089,5.1243252,2758.8,2758.7,3.2078]
[1738771746282,4.0148252,2758.8,2758.7,11.60322311]
[1738771746482,13.73844366,2760.0,2758.7,11.60322311]
[1738771746483,13.73844366,2760.0,2758.7,16.61601749]
[1738771746679,13.73844366,2760.0,2759.8,3.2078]
[1738771747187,13.73844366,2760.4,2759.9,4.61520292]
[1738771747390,13.73844366,2760.4,2760.3,3.2078]
[1738771747689,0.68278184,2760.0,2759.3,3.2078]
[1738771747886,3.2078,2759.8,2759.7,4.61520292]
[1738771748087,0.68278184,2760.0,2759.3,3.2078]
[1738771748389,13.73844366,2760.4,2759.9,3.2078]
[1738771748584,13.73844366,2760.4,2760.2,3.2078]
[1738771748985,13.73844366,2760.4,2760.3,5.53716025]
[1738771749190,10.11604366,2760.4,2760.3,5.53716025]
[1738771749393,15.11228803,2761.2,2760.3,14.13652913]
[1738771749591,3.2078,2762.6,2761.1,6.60322311]
[1738771749884,0.7004,2762.7,2762.1,3.2078]
[1738771749885,4.30518184,2762.4,2762.1,3.2078]
[1738771750282,3.2078,2763.2,2762.2,4.78448158]
[1738771750487,3.2078,2763.2,2762.5,3.2078]
[1738771750688,0.00543331,2763.0,2762.5,3.2078]
[1738771750992,4.30518184,2762.9,2762.6,4.78448158]
[1738771751189,0.00543331,2763.0,2762.8,3.2078]
[1738771751386,4.31061515,2763.0,2762.8,3.2078]
[1738771751689,0.00543331,2763.0,2762.9,4.67161747]
[1738771751889,0.00543331,2763.0,2762.8,3.2078]
[1738771752086,0.00543331,2763.0,2762.9,4.75367512]
[1738771752295,0.7133,2764.6,2762.9,4.75367512]
[1738771752593,4.30518184,2764.2,2763.8,3.2078]
[1738771752888,4.30518184,2764.2,2764.1,3.2078]
[1738771753283,3.2078,2764.9,2764.1,3.2078]
[1738771753485,3.2078,2764.2,2762.6,3.2078]
[1738771753684,3.2078,2763.9,2763.2,3.2078]
[1738771753880,3.2078,2763.9,2763.1,0.00543331]
[1738771754087,3.2078,2763.9,2763.3,4.81197446]
[1738771754285,0.00543331,2764.4,2763.2,8.01977446]
[1738771754485,0.00543331,2764.4,2763.5,3.2078]
[1738771754685,0.00543331,2764.4,2763.4,4.81197446]
[1738771754889,0.00543331,2764.4,2763.8,3.2078]
[1738771755085,0.00543331,2764.4,2763.4,3.2078]
[1738771755086,3.2078,2764.1,2763.4,3.2078]
[1738771755293,3.2078,2764.1,2763.5,4.78071353]
[1738771755489,3.2078,2764.1,2763.4,3.2078]
[1738771755490,3.2078,2764.1,2763.7,4.78071353]
[1738771755693,3.2078,2764.1,2763.4,3.2078]
[1738771755895,3.2078,2764.1,2763.6,4.78071353]
[1738771756098,3.2078,2763.7,2763.1,0.00543331]
[1738771756490,3.2078,2764.1,2763.2,4.78877081]
[1738771756690,3.2078,2763.7,2763.2,4.78877081]
[1738771757297,3.2078,2763.7,2763.1,0.00543331]
[1738771757490,3.2078,2763.3,2763.1,0.00543331]
[1738771758100,3.2078,2763.2,2763.1,0.00543331]
[1738771758699,0.7331,2763.6,2763.1,4.67089243]
[1738771758894,3.2078,2764.0,2763.3,3.2078]
[1738771759094,3.2078,2764.0,2763.4,3.2078]
[1738771759395,3.2078,2764.0,2763.4,7.89849325]
[1738771759795,3.2078,2763.7,2763.1,0.00543331]
[1738771760390,3.2078,2763.4,2763.1,0.00543331]
[1738771760592,3.2078,2763.7,2763.1,0.00543331]
[1738771760790,3.2078,2763.2,2763.1,0.00543331]
[1738771761593,3.2078,2763.2,2762.2,3.2078]
[1738771761902,3.2078,2763.2,2762.5,3.2078]
[1738771762193,2.17538,2764.2,2762.3,4.67002649]
[1738771762194,3.2078,2763.6,2762.9,3.39542311]
[1738771762699,3.2078,2764.1,2763.1,3.2078]
[1738771762897,0.00543331,2763.5,2763.4,3.2078]
[1738771763290,0.00543331,2763.5,2763.4,9.77262081]
[1738771763491,0.00543331,2763.5,2763.4,4.77262081]
[1738771763891,0.00543331,2763.5,2763.2,4.77262081]
[1738771764095,0.00543331,2763.5,2763.4,4.60083373]
[1738771764498,0.00543331,2763.5,2763.3,4.60083373]
[1738771764697,0.00543331,2763.5,2763.4,4.60083373]
[1738771764901,0.00543331,2763.5,2763.2,4.60083373]
[1738771765098,3.2078,2764.8,2763.4,3.39542311]
[1738771765294,3.2078,2765.3,2764.1,3.2078]
[1738771765695,3.2078,2765.1,2764.2,4.77949835]
[1738771766193,3.2078,2764.5,2763.9,4.74629433]
[1738771766394,3.2078,2764.1,2763.0,3.2078]
[1738771766693,3.2078,2763.6,2762.9,4.74629433]
[1738771766894,3.2078,2763.6,2762.5,3.2078]
[1738771767199,3.2078,2762.9,2762.2,3.2078]
[1738771767497,3.2078,2762.3,2761.4,6.60322311]
[1738771767801,3.2078,2762.5,2761.9,4.61980057]
[1738771768004,3.2078,2762.9,2762.0,3.2078]
[1738771768201,0.00543331,2763.3,2762.3,3.2078]
[1738771768497,0.00543331,2763.3,2762.9,3.2078]
[1738771768796,0.00543331,2763.3,2762.7,3.2078]
[1738771769097,0.00543331,2763.3,2762.5,0.00543331]
[1738771769098,0.00543331,2763.3,2763.1,3.2078]
[1738771769289,3.2078,2763.2,2762.8,4.65346824]
[1738771769494,3.2078,2763.2,2762.5,0.00543331]
[1738771769690,3.2078,2763.2,2762.7,4.65346824]
[1738771769996,3.2078,2764.2,2763.0,6.60322311]
[1738771770199,3.2078,2764.2,2763.6,3.2078]
[1738771770399,3.2078,2764.8,2764.0,3.2078]
[1738771770700,3.2078,2764.5,2763.8,6.60322311]
[1738771771000,0.7342,2765.2,2764.3,3.2078]
[1738771771001,3.2078,2764.9,2764.3,3.2078]
[1738771771198,3.2078,2764.9,2764.0,3.2078]
[1738771771413,0.00543331,2764.4,2764.0,3.2078]
[1738771771710,3.2078,2764.3,2764.2,4.80526721]
[1738771771916,3.2078,2764.3,2763.9,0.00543331]
[1738771772104,0.00543331,2764.4,2763.9,0.00543331]
[1738771772613,3.2078,2764.2,2763.9,0.00543331]
[1738771772805,3.93116,2764.2,2763.9,0.00543331]
[1738771773007,3.2078,2764.2,2763.9,0.00543331]
[1738771773207,0.72345,2763.9,2763.1,3.2078]
[1738771773408,1.3726,2764.3,2763.1,3.2078]
[1738771773409,3.2078,2763.6,2763.1,3.2078]
[1738771773609,3.2078,2763.3,2762.4,3.2078]
[1738771774018,3.2078,2763.7,2762.7,3.2078]
[1738771774319,0.7335,2764.1,2762.7,3.2078]
[1738771774320,3.2078,2763.4,2762.7,3.2078]
[1738771774520,3.2078,2763.4,2762.9,0.00543331]
[1738771774821,3.2078,2763.4,2763.0,5.30200247]
[1738771775017,0.00543331,2763.5,2763.3,6.60322311]
[1738771775219,3.2078,2764.7,2763.4,1.949]
[1738771775412,3.2078,2764.7,2763.8,3.2078]
[1738771775618,3.2078,2764.4,2763.5,1.46940019]
[1738771775818,3.2078,2764.4,2763.9,4.7486414]
[1738771776113,3.2078,2764.4,2763.6,4.7486414]
[1738771776319,3.2078,2764.4,2763.5,1.46940019]
[1738771776514,0.00543331,2764.3,2763.7,4.60044648]
[1738771776714,3.2078,2764.0,2763.7,4.60044648]
[1738771776912,0.00543331,2764.3,2763.7,4.60044648]
[1738771776913,3.2078,2764.1,2763.8,0.56530695]
[1738771777117,3.2078,2764.1,2763.7,0.00543331]
[1738771777315,3.2078,2763.8,2762.7,3.2078]
[1738771777520,3.2078,2762.9,2762.4,3.2078]
[1738771778016,3.2078,2762.5,2761.7,1.5874533]
[1738771778215,3.39542311,2763.6,2761.7,4.7952533]
[1738771778216,3.2078,2762.3,2761.7,4.7952533]
[1738771778419,3.2078,2762.9,2762.0,4.81332892]
[1738771778718,3.21323331,2762.3,2761.8,0.00543331]
[1738771778916,3.2078,2762.1,2761.8,0.00543331]
[1738771779218,3.21323331,2762.3,2761.9,4.80798971]
[1738771779417,3.2078,2762.1,2761.8,0.00543331]
[1738771780314,0.00543331,2762.3,2761.8,0.00543331]
[1738771780515,0.00543331,2762.3,2761.9,4.60442234]
[1738771780716,0.00543331,2762.3,2761.8,0.00543331]
[1738771781124,3.21323331,2762.3,2762.0,4.60442234]
[1738771781421,0.00543331,2762.3,2761.8,3.93721331]
[1738771781614,0.00543331,2762.3,2762.2,0.72387]
[1738771781816,3.2078,2763.0,2762.0,4.80012234]
[1738771782014,3.2078,2763.0,2761.8,0.00543331]
[1738771782219,3.2078,2762.7,2761.8,0.00543331]
[1738771782515,3.2078,2762.7,2762.0,4.72051696]
[1738771782721,3.2078,2762.7,2761.9,4.72051696]
[1738771782915,3.2078,2762.7,2762.1,4.72051696]
[1738771783122,0.00543331,2762.6,2762.1,4.72051696]
[1738771783320,0.00543331,2762.6,2762.0,4.66111613]
[1738771783517,3.2078,2762.1,2761.8,0.00543331]
[1738771784128,3.2078,2762.0,2761.8,0.00543331]
[1738771786121,3.9135,2762.5,2761.9,4.6680238]
[1738771786317,3.9135,2762.5,2761.8,0.00543331]
[1738771786724,3.9135,2762.5,2761.9,4.6680238]
[1738771786922,3.9135,2762.5,2761.9,45.4680238]
[1738771787126,0.00543331,2762.6,2761.9,45.4680238]
[1738771788223,3.2078,2762.2,2761.8,0.00543331]
[1738771788431,3.2078,2761.9,2761.8,0.00543331]
[1738771789226,3.2078,2762.2,2761.8,0.00543331]
[1738771789421,3.2078,2762.5,2761.8,0.00543331]
[1738771790432,0.00543331,2762.6,2761.9,4.68077274]
[1738771790827,3.2078,2762.5,2761.9,4.68077274]
[1738771791028,3.2078,2762.5,2761.8,3.21323331]
[1738771791223,0.00543331,2762.6,2762.2,0.72385]
[1738771791532,0.00543331,2762.6,2762.3,4.7392383]
[1738771791933,0.00543331,2762.6,2762.1,7.9470383]
[1738771792232,0.00543331,2762.6,2762.4,4.59777454]
[1738771792531,0.00543331,2762.6,2762.2,4.59777454]
[1738771792736,0.00543331,2762.6,2762.5,4.59777454]
[1738771793227,0.00543331,2762.6,2762.4,3.2078]
[1738771793436,0.00543331,2762.6,2762.5,4.75702811]
[1738771793621,0.00543331,2762.6,2762.4,3.2078]
[1738771794023,0.00543331,2762.6,2762.5,4.75702811]
[1738771794430,0.00543331,2762.6,2762.4,3.2078]
[1738771794636,0.00543331,2762.6,2761.9,0.6904]
[1738771794637,0.00543331,2762.6,2761.9,3.8982]
[1738771794832,3.2078,2762.1,2761.8,0.00543331]
[1738771796437,0.72395,2761.9,2761.0,3.2078]
[1738771796735,3.2078,2761.1,2760.2,8.39351812]
[1738771797035,3.2078,2761.1,2760.3,4.70993913]
[1738771797235,3.2078,2761.4,2760.3,4.70993913]
[1738771797832,3.21323331,2761.1,2760.6,0.00543331]
[1738771798028,0.00543331,2761.1,2760.6,0.00543331]
[1738771798226,0.00543331,2761.1,2760.7,7.88329984]
[1738771799234,0.00543331,2761.1,2761.0,3.2078]
[1738771799636,3.2078,2761.9,2761.0,12.96990837]
[1738771799837,3.2078,2761.9,2761.0,7.96990837]
[1738771800338,3.2078,2762.8,2761.6,3.2078]
[1738771800633,3.2078,2763.0,2762.1,3.2078]
[1738771800834,3.2078,2763.0,2762.2,1.26629608]
[1738771801033,3.2078,2763.3,2762.5,3.2078]
[1738771801234,0.6883,2763.5,2762.6,2.8506192]
[1738771801441,0.6883,2763.5,2761.4,5.45759123]
[1738771801442,3.2078,2762.7,2762.3,0.00543331]
[1738771801635,0.00543331,2762.9,2762.4,2.8506364]
[1738771801835,0.39003203,2763.0,2762.5,4.93184123]
[1738771802037,0.6883,2763.5,2762.6,7.9856452]
[1738771802038,3.2078,2763.5,2762.6,7.9856452]
[1738771802243,3.2078,2763.5,2762.7,6.40226502]
[1738771802433,3.2078,2763.5,2762.8,6.40226502]
[1738771802630,1.4202,2763.7,2762.9,6.40226502]
[1738771802840,3.2078,2764.4,2763.0,9.5646762]
[1738771803040,0.00343253,2763.6,2763.1,4.77349602]
[1738771803240,0.00343253,2763.6,2763.0,6.36807696]
[1738771803241,0.00343253,2763.6,2763.5,3.2078]
[1738771803435,0.00343253,2763.6,2763.5,7.98129602]
[1738771803636,0.00343253,2763.6,2763.5,12.68286212]
[1738771803838,3.2078,2764.7,2763.5,23.7300657]
[1738771804142,3.2078,2764.7,2764.2,3.2078]
[1738771804342,3.2078,2765.5,2764.3,6.3568762]
[1738771804544,1.4172,2765.8,2764.4,4.75505794]
[1738771804545,3.2078,2764.9,2764.4,4.75505794]
[1738771804746,3.2078,2764.6,2764.5,0.72353125]
[1738771805042,3.2078,2764.6,2764.4,0.00543331]
[1738771806946,3.2078,2764.6,2764.5,1.582374]
[1738771807139,0.72327,2764.5,2764.4,0.00543331]
[1738771807338,3.2078,2764.6,2764.4,0.00543331]
[1738771807739,4.1129034,2765.7,2764.5,4.79013026]
[1738771807740,3.9428,2765.7,2764.5,4.79013026]
[1738771807939,3.9428,2765.7,2764.9,3.2078]
[1738771808333,0.72308,2765.3,2764.4,0.00543331]
[1738771808536,3.2078,2764.8,2764.4,0.00543331]
[1738771809245,3.93093,2765.1,2764.4,0.00543331]
[1738771809446,0.72314,2765.0,2764.4,0.00543331]
[1738771809742,3.2078,2765.1,2764.5,9.57023859]
[1738771809945,3.2078,2764.8,2764.6,1.58245084]
[1738771810141,3.2078,2764.8,2764.4,0.00543331]
[1738771810346,0.72331,2764.4,2763.9,3.2078]
[1738771810647,1.387,2764.7,2764.0,1.58276373]
[1738771810840,1.387,2764.7,2763.9,3.2078]
[1738771811045,0.72329,2764.5,2764.0,1.58266221]
[1738771811247,0.72335,2764.2,2764.1,1.58266221]
[1738771811546,0.72335,2764.2,2762.5,3.2078]
[1738771811547,8.3779034,2764.2,2762.5,3.2078]
[1738771811748,3.2078,2763.5,2762.5,3.2078]
[1738771811946,3.2078,2763.5,2762.5,7.95327045]
[1738771812144,3.2078,2763.9,2762.8,3.2078]
[1738771812344,3.2078,2764.3,2763.2,3.2078]
[1738771812541,0.72338,2764.1,2763.2,3.2078]
[1738771812846,3.93114,2764.3,2763.5,0.00543331]
[1738771813142,0.72348,2763.7,2763.6,0.90457567]
[1738771813344,3.2078,2763.7,2762.5,3.2078]
[1738771813645,3.2078,2763.7,2762.9,3.2078]
[1738771814053,0.72352,2763.6,2762.9,3.2078]
[1738771814243,0.72352,2763.6,2762.0,0.7435]
[1738771814244,3.2078,2763.3,2762.2,3.2078]
[1738771814440,3.93128,2763.7,2762.8,3.2078]
[1738771814749,3.2078,2763.7,2763.0,0.00543331]
[1738771814949,0.00543331,2763.5,2763.1,1.99024736]
[1738771815245,3.2078,2763.7,2763.2,1.99024736]
[1738771815446,0.7008,2764.1,2763.4,3.2078]
[1738771815639,0.7008,2764.1,2763.5,1.99024736]
[1738771815840,0.72341,2764.0,2763.6,1.99024736]
[1738771816148,0.72345,2763.8,2763.7,2.89472806]
[1738771816450,0.7008,2764.1,2763.7,2.89472806]
[1738771816451,3.2078,2764.1,2763.7,2.89472806]
[1738771816647,0.00543331,2764.0,2763.8,2.89472806]
[1738771816944,2.47135927,2764.1,2763.9,3.91225562]
[1738771817149,1.74796927,2764.1,2764.0,3.00770195]
[1738771817643,1.74796927,2764.1,2764.0,1.74116319]
[1738771817843,1.74796927,2764.1,2764.0,3.00754226]
[1738771818148,0.00543331,2764.3,2764.0,3.90856141]
[1738771818346,0.00543331,2764.3,2764.1,3.90856141]
[1738771818646,0.00543331,2764.3,2764.2,3.90856141]
[1738771819455,3.2078,2765.2,2764.2,3.90856141]
[1738771819648,0.72313,2765.1,2764.3,7.11636141]
[1738771819946,3.2078,2765.2,2764.4,3.91145622]
[1738771820148,0.72311,2765.1,2765.0,0.55854751]
[1738771820348,3.93091,2765.1,2765.0,2.64507715]
[1738771820554,8.93091,2765.1,2765.0,2.64507715]
[1738771820753,8.2682064,2765.1,2763.5,1.58262992]
[1738771821049,0.72348,2763.7,2763.6,1.26639847]
[1738771821248,3.2078,2763.8,2763.1,3.2078]
[1738771821448,3.2078,2763.8,2763.2,1.93980556]
[1738771821650,3.2078,2763.8,2763.3,1.26655708]
[1738771821951,3.2078,2763.5,2763.2,0.00543331]
[1738771822157,0.72359,2763.3,2763.2,0.00543331]
[1738771823053,3.21323331,2763.8,2763.2,1.94538584]
[1738771823253,0.72348,2763.7,2763.3,1.26670405]
[1738771823454,3.21323331,2763.8,2763.4,1.26670405]
[1738771823758,0.72351,2763.6,2763.5,1.26670405]
[1738771823957,3.2078,2763.7,2763.2,0.00543331]
[1738771824157,0.72356,2763.4,2763.3,1.26669768]
[1738771824358,3.2078,2763.7,2763.2,0.00543331]
[1738771824854,0.72355,2763.5,2763.3,1.26671979]
[1738771825055,0.72359,2763.3,2762.4,3.2078]
[1738771825361,0.72373,2762.8,2762.5,1.94008343]
[1738771825555,0.72373,2762.8,2762.6,1.26683495]
[1738771825853,0.72371,2762.9,2762.7,1.26683495]
[1738771826055,3.2078,2763.0,2761.6,1.58366705]
[1738771826056,8.2078,2763.0,2761.6,4.79146705]
[1738771826245,0.7228,2763.2,2761.7,1.26716593]
[1738771826246,3.2078,2762.0,2761.7,1.26716593]
[1738771826450,3.2078,2762.0,2761.8,1.26716593]
[1738771826451,0.72396,2761.9,2761.8,1.26716593]
[1738771826750,0.724,2761.7,2761.6,0.00543331]
[1738771826951,0.00543331,2762.1,2761.8,0.67324848]
[1738771827149,0.00543331,2762.1,2761.9,1.2675331]
[1738771827454,3.3779034,2763.1,2762.0,3.52468778]
[1738771827455,0.7228,2763.1,2762.0,3.52468778]
[1738771827653,0.72371,2762.9,2762.1,2.8514393]
[1738771827856,3.2078,2763.0,2762.2,1.2675331]
[1738771828059,0.7237,2762.9,2762.4,0.67324848]
[1738771828252,3.2078,2763.0,2761.7,1.3948]
[1738771828253,3.2078,2763.0,2762.8,0.67324848]
[1738771828558,3.2078,2763.0,2762.9,1.94078158]
[1738771828757,3.93146,2763.0,2762.9,1.2675331]
[1738771829062,3.2078,2763.0,2762.9,1.26699157]
[1738771829260,0.00543331,2763.2,2762.9,1.94024005]
[1738771829564,0.00543331,2763.2,2763.1,0.67324848]
[1738771829753,0.00543331,2763.2,2763.1,1.94024005]
[1738771830255,1.8091,2763.1,2761.7,4.6026]
[1738771830557,3.21323331,2763.2,2762.1,0.67324848]
[1738771830558,3.2078,2762.5,2762.1,0.67324848]
[1738771830759,6.5857034,2762.9,2762.2,3.21312408]
[1738771830956,3.2078,2762.6,2762.3,3.21312408]
[1738771831260,3.21323331,2763.2,2762.6,0.67324848]
[1738771831464,3.21323331,2763.2,2762.7,2.30245119]
[1738771831759,3.3779034,2763.3,2762.8,1.62920271]
[1738771832058,6.5857034,2762.9,2762.0,3.2078]
[1738771832254,3.2078,2762.4,2762.1,1.62910656]
[1738771832458,2.39316379,2762.4,2762.3,0.67324848]
[1738771832661,3.2078,2762.8,2762.3,4.90441211]
[1738771832860,3.2078,2762.5,2762.4,2.64730308]
[1738771833059,3.9316,2762.5,2762.4,2.64730308]
[1738771833255,3.2078,2762.5,2762.4,3.77875218]
[1738771833456,3.2078,2762.8,2762.4,3.77875218]
[1738771833763,3.3779034,2762.9,2762.5,3.77890573]
[1738771833963,3.3779034,2762.9,2762.0,3.2078]
[1738771833964,3.2078,2763.0,2762.8,0.67324848]
[1738771834263,3.2078,2763.0,2762.9,2.64697532]
[1738771834651,3.93146,2763.0,2762.9,2.64697532]
[1738771834856,8.93146,2763.0,2762.9,2.64697532]
[1738771835362,3.93146,2763.0,2762.9,2.6472328]
[1738771835659,8.2078,2763.0,2762.9,2.64747362]
[1738771835855,8.93146,2763.0,2762.9,2.64747362]
[1738771836050,8.93146,2763.0,2762.9,0.5007652]
[1738771836353,0.724,2761.7,2761.6,0.00543331]
[1738771836562,0.724,2761.7,2761.6,0.67868179]
[1738771836754,5.0,2761.7,2761.2,3.2078]
[1738771836960,3.2078,2761.3,2760.5,1.58400754]
[1738771837156,3.2078,2761.9,2761.7,0.67324848]
[1738771837359,3.2078,2762.3,2761.8,0.67324848]
[1738771837559,3.2078,2762.3,2761.9,0.67324848]
[1738771837760,0.72393,2762.0,2761.9,0.67324848]
[1738771838059,0.00543331,2762.4,2762.2,0.67324848]
[1738771838262,0.00543331,2762.4,2762.3,3.2078]
[1738771838458,0.00543331,2762.4,2762.3,3.88104848]
[1738771838763,0.00543331,2762.4,2761.8,0.00543331]
[1738771838764,0.72386,2762.3,2761.8,0.00543331]
[1738771839054,3.21323331,2762.4,2762.1,0.67324848]
[1738771839262,0.72387,2762.3,2762.1,0.67324848]
[1738771839453,3.21323331,2762.4,2762.1,0.67324848]
[1738771839654,0.72387,2762.2,2762.1,0.67324848]
[1738771840063,0.72412,2761.3,2760.8,3.2078]
[1738771840361,3.2078,2761.5,2761.2,0.67324848]
[1738771840664,3.2078,2761.5,2761.3,1.26749821]
[1738771840963,0.72403,2761.6,2761.4,1.94082378]
[1738771841164,3.2078,2761.9,2761.5,1.94082378]
[1738771841456,5.1876034,2762.2,2761.7,0.67324848]
[1738771841457,3.2078,2761.8,2761.7,0.67324848]
[1738771841652,3.3779034,2762.2,2761.7,0.67324848]
[1738771841653,0.00543331,2762.4,2762.1,0.67324848]
[1738771841853,0.29535706,2764.0,2762.3,3.2078]
[1738771842052,3.2078,2764.5,2763.8,0.67324848]
[1738771842254,4.8159534,2764.6,2764.4,0.55966145]
[1738771842459,4.8159534,2764.6,2763.6,3.2078]
[1738771842460,0.72334,2764.3,2763.6,3.2078]
[1738771842661,0.72336,2764.2,2763.7,2.84917477]
[1738771842857,3.2078,2764.2,2763.8,1.93954838]
[1738771843057,4.0927034,2764.6,2764.1,0.67324848]
[1738771843257,0.28487393,2764.7,2764.5,0.67324848]
[1738771843465,3.2078,2764.9,2764.6,1.93954838]
[1738771843763,0.00543331,2764.9,2764.8,0.67324848]
[1738771843951,0.00543331,2764.9,2764.8,1.93954838]
[1738771844264,3.3779034,2765.4,2764.8,1.93954838]
[1738771844570,3.3779034,2765.4,2765.1,0.67324848]
[1738771844762,3.2078,2765.3,2764.7,0.67324848]
[1738771845058,4.1009434,2765.4,2764.6,0.67324848]
[1738771845059,3.2078,2765.0,2764.6,0.67324848]
[1738771845258,3.2078,2765.0,2764.7,0.59286363]
[1738771845461,3.2078,2765.0,2764.4,0.67324848]
[1738771846056,3.2078,2765.0,2764.5,0.72351643]
[1738771846262,3.2078,2765.0,2764.8,0.67324848]
[1738771846466,3.2078,2765.0,2764.9,1.39676491]